[Event "*** Titled Tuesday Blitz AM"]
[Site "Chess.com"]
[Date "2020.01.07"]
[Round "3"]
[White "tigra"]
[Black "OparinGrigoriy"]
[Result "0-1"]
[WhiteElo "2727"]
[BlackElo "3041"]
[TimeControl "180+2"]
[EndTime "9:40:29 PST"]
[Termination "OparinGrigoriy won on time"]

1. e4 {[%clk 0:03:01.9]} 1... e5 {[%clk 0:03:00.4]} 2. Nf3 {[%clk 0:03:02.6]}
2... Nc6 {[%clk 0:03:01.4]} 3. Bc4 {[%clk 0:03:04.2]} 3... Nf6 {[%clk
0:03:02.9]} 4. d3 {[%clk 0:03:05.2]} 4... h6 {[%clk 0:03:02.5]} 5. a4 {[%clk
0:03:04.4]} 5... g6 {[%clk 0:02:59.4]} 6. c3 {[%clk 0:03:03.5]} 6... Bg7 {[%clk
0:02:59.7]} 7. Qb3 {[%clk 0:02:58.7]} 7... O-O {[%clk 0:02:59.6]} 8. a5 {[%clk
0:02:59.5]} 8... Rb8 {[%clk 0:02:54.9]} 9. Be3 {[%clk 0:02:10.3]} 9... b5 {[%clk
0:02:55]} 10. axb6 {[%clk 0:02:09.7]} 10... axb6 {[%clk 0:02:56.3]} 11. Nbd2
{[%clk 0:02:05.4]} 11... d6 {[%clk 0:02:56]} 12. h3 {[%clk 0:02:03.4]} 12... Bd7
{[%clk 0:02:54]} 13. Qc2 {[%clk 0:01:56.4]} 13... b5 {[%clk 0:02:52.1]} 14. Bb3
{[%clk 0:01:56.8]} 14... Ra8 {[%clk 0:02:48.6]} 15. O-O {[%clk 0:01:56.7]} 15...
Na5 {[%clk 0:02:48.9]} 16. Ba2 {[%clk 0:01:54.3]} 16... c5 {[%clk 0:02:50.4]}
17. b4 {[%clk 0:01:48.5]} 17... cxb4 {[%clk 0:02:49.3]} 18. cxb4 {[%clk
0:01:50.4]} 18... Nc6 {[%clk 0:02:50.7]} 19. Qb2 {[%clk 0:01:37.5]} 19... Qe7
{[%clk 0:02:39.6]} 20. Bb3 {[%clk 0:01:22.4]} 20... Kh7 {[%clk 0:02:28.5]} 21.
Bc2 {[%clk 0:01:18.3]} 21... Nh5 {[%clk 0:02:24.1]} 22. d4 {[%clk 0:01:16.8]}
22... Nf4 {[%clk 0:02:17.8]} 23. d5 {[%clk 0:01:15.5]} 23... Nd4 {[%clk
0:02:03.2]} 24. Rxa8 {[%clk 0:00:44.7]} 24... Rxa8 {[%clk 0:01:29.2]} 25. Nxd4
{[%clk 0:00:42.8]} 25... Nxh3+ {[%clk 0:01:18.5]} 26. gxh3 {[%clk 0:00:31.9]}
26... exd4 {[%clk 0:01:20.4]} 27. Bxd4 {[%clk 0:00:30.8]} 27... Qg5+ {[%clk
0:01:20.3]} 28. Kh2 {[%clk 0:00:28.3]} 28... Qf4+ {[%clk 0:01:07.2]} 29. Kg2
{[%clk 0:00:28.9]} 29... Qg5+ {[%clk 0:01:08]} 30. Kh2 {[%clk 0:00:29.7]} 30...
Qf4+ {[%clk 0:00:20.7]} 31. Kg2 {[%clk 0:00:30.2]} 31... Ra2 {[%clk 0:00:22.2]}
32. Qxa2 {[%clk 0:00:25.1]} 32... Bxd4 {[%clk 0:00:23.8]} 33. Qb3 {[%clk
0:00:24.1]} 33... Qxd2 {[%clk 0:00:22.3]} 34. Qf3 {[%clk 0:00:19.5]} 34... Kg7
{[%clk 0:00:21.6]} 35. Rd1 {[%clk 0:00:18.4]} 35... Qxb4 {[%clk 0:00:21.6]} 36.
Bd3 {[%clk 0:00:17.5]} 36... Be5 {[%clk 0:00:20.5]} 37. Rb1 {[%clk 0:00:17.8]}
37... Qa4 {[%clk 0:00:16.2]} 38. Qe3 {[%clk 0:00:15.8]} 38... g5 {[%clk
0:00:16]} 39. Be2 {[%clk 0:00:13]} 39... b4 {[%clk 0:00:15.7]} 40. Bg4 {[%clk
0:00:13]} 40... Bb5 {[%clk 0:00:11.8]} 41. Bd1 {[%clk 0:00:13.3]} 41... Qa5
{[%clk 0:00:11.1]} 42. Be2 {[%clk 0:00:14.4]} 42... Bd7 {[%clk 0:00:11.3]} 43.
Qd3 {[%clk 0:00:14.9]} 43... Qc5 {[%clk 0:00:11.4]} 44. Qc4 {[%clk 0:00:15.4]}
44... Qxc4 {[%clk 0:00:12.9]} 45. Bxc4 {[%clk 0:00:16]} 45... Bc3 {[%clk
0:00:14.8]} 46. Kg3 {[%clk 0:00:16.4]} 46... Kf6 {[%clk 0:00:16.1]} 47. f4
{[%clk 0:00:15.2]} 47... gxf4+ {[%clk 0:00:18]} 48. Kxf4 {[%clk 0:00:17.1]}
48... Bd2+ {[%clk 0:00:19.1]} 49. Kf3 {[%clk 0:00:16.9]} 49... Ke5 {[%clk
0:00:21]} 50. Ke2 {[%clk 0:00:12.1]} 50... Bc3 {[%clk 0:00:22.3]} 51. Ke3 {[%clk
0:00:12.6]} 51... Bxh3 {[%clk 0:00:20]} 52. Rh1 {[%clk 0:00:13]} 52... Bg4
{[%clk 0:00:18.5]} 53. Rxh6 {[%clk 0:00:13.5]} 53... Bd4+ {[%clk 0:00:18.5]} 54.
Kd3 {[%clk 0:00:14.4]} 54... Bf3 {[%clk 0:00:19.9]} 55. Rh4 {[%clk 0:00:07.7]}
55... Bf2 {[%clk 0:00:20.8]} 56. Rh3 {[%clk 0:00:08]} 56... Bxe4+ {[%clk
0:00:21.7]} 57. Ke2 {[%clk 0:00:09.3]} 57... Bc5 {[%clk 0:00:21.9]} 58. Rh4
{[%clk 0:00:09.8]} 58... f5 {[%clk 0:00:23]} 59. Bb3 {[%clk 0:00:09.8]} 59...
Kd4 {[%clk 0:00:24.3]} 60. Kd2 {[%clk 0:00:11]} 60... Bb6 {[%clk 0:00:25.2]} 61.
Rf4 {[%clk 0:00:11.4]} 61... Bd8 {[%clk 0:00:26.3]} 62. Rf2 {[%clk 0:00:05.7]}
62... Bg5+ {[%clk 0:00:27.8]} 63. Kd1 {[%clk 0:00:06.7]} 63... Be3 {[%clk
0:00:28]} 64. Rh2 {[%clk 0:00:05.3]} 64... f4 {[%clk 0:00:29.5]} 65. Bc2 {[%clk
0:00:05.7]} 65... Bxd5 {[%clk 0:00:27.4]} 66. Rh6 {[%clk 0:00:06.6]} 66... Bf3+
{[%clk 0:00:28.4]} 67. Ke1 {[%clk 0:00:07.5]} 67... d5 {[%clk 0:00:29.9]} 68.
Rc6 {[%clk 0:00:07.7]} 68... Be4 {[%clk 0:00:28.9]} 69. Bb3 {[%clk 0:00:08.3]}
69... f3 {[%clk 0:00:30.1]} 70. Bd1 {[%clk 0:00:07.8]} 70... f2+ {[%clk
0:00:28.3]} 71. Kf1 {[%clk 0:00:08.8]} 71... Bf5 {[%clk 0:00:27]} 72. Bf3 {[%clk
0:00:04.7]} 72... b3 {[%clk 0:00:26.6]} 73. Rb6 {[%clk 0:00:05.5]} 73... Kc3
{[%clk 0:00:25.9]} 74. Rc6+ {[%clk 0:00:06]} 74... Kd4 {[%clk 0:00:27.3]} 75.
Rb6 {[%clk 0:00:06.7]} 75... Bd3+ {[%clk 0:00:28.4]} 76. Be2 {[%clk 0:00:06.9]}
76... Bc4 {[%clk 0:00:29.9]} 77. Rb7 {[%clk 0:00:03.3]} 77... Kc3 {[%clk
0:00:31.1]} 78. Rb8 {[%clk 0:00:03.8]} 78... b2 {[%clk 0:00:32.1]} 79. Bxc4
{[%clk 0:00:03.8]} 79... dxc4 {[%clk 0:00:33.3]} 80. Ke2 {[%clk 0:00:04.6]}
80... Bd4 {[%clk 0:00:34.2]} 0-1

[Event "*** Titled Tuesday Blitz AM"]
[Site "Chess.com"]
[Date "2020.01.07"]
[Round "3"]
[White "IwkooO"]
[Black "TigrVShlyape"]
[Result "1/2-1/2"]
[WhiteElo "2579"]
[BlackElo "2817"]
[TimeControl "180+2"]
[EndTime "9:40:56 PST"]
[Termination "Game drawn by repetition"]

1. e4 {[%clk 0:03:01.1]} 1... g6 {[%clk 0:02:58.9]} 2. d4 {[%clk 0:03:02.1]}
2... Bg7 {[%clk 0:02:59.6]} 3. Nc3 {[%clk 0:03:03.8]} 3... d6 {[%clk 0:03:00.5]}
4. f4 {[%clk 0:03:05.3]} 4... Nf6 {[%clk 0:03:00.5]} 5. Nf3 {[%clk 0:03:06.3]}
5... c5 {[%clk 0:03:01.3]} 6. dxc5 {[%clk 0:03:05.9]} 6... Qa5 {[%clk
0:03:01.8]} 7. Bd3 {[%clk 0:03:06.1]} 7... Qxc5 {[%clk 0:03:02.3]} 8. Qe2 {[%clk
0:03:07.1]} 8... Bg4 {[%clk 0:02:56.4]} 9. Be3 {[%clk 0:03:05.7]} 9... Qa5
{[%clk 0:02:56.4]} 10. O-O {[%clk 0:03:01.4]} 10... Nc6 {[%clk 0:02:56.6]} 11.
a3 {[%clk 0:03:02]} 11... O-O {[%clk 0:02:53.6]} 12. Kh1 {[%clk 0:02:47.6]}
12... Rac8 {[%clk 0:02:18.5]} 13. b4 {[%clk 0:02:22.9]} 13... Qd8 {[%clk
0:02:16.5]} 14. Rad1 {[%clk 0:02:20.4]} 14... Nxb4 {[%clk 0:01:59.3]} 15. axb4
{[%clk 0:02:10.2]} 15... Rxc3 {[%clk 0:01:59.4]} 16. Bd4 {[%clk 0:02:05.9]}
16... Ra3 {[%clk 0:01:51.7]} 17. h3 {[%clk 0:01:49]} 17... Nh5 {[%clk
0:01:47.9]} 18. Bf2 {[%clk 0:00:55.8]} 18... Nxf4 {[%clk 0:01:45.1]} 19. Qe3
{[%clk 0:00:57.1]} 19... Bxf3 {[%clk 0:01:43.5]} 20. Qxf3 {[%clk 0:00:52.2]}
20... Nxd3 {[%clk 0:01:41.1]} 21. Rxd3 {[%clk 0:00:52.7]} 21... Rxd3 {[%clk
0:01:37.8]} 22. Qxd3 {[%clk 0:00:54.6]} 22... a6 {[%clk 0:01:34.1]} 23. b5
{[%clk 0:00:55.8]} 23... axb5 {[%clk 0:01:32.2]} 24. Qxb5 {[%clk 0:00:57.7]}
24... Qc7 {[%clk 0:01:33]} 25. Bh4 {[%clk 0:00:56.2]} 25... e6 {[%clk 0:01:27]}
26. Bg3 {[%clk 0:00:53.3]} 26... Rc8 {[%clk 0:01:25.8]} 27. Rd1 {[%clk
0:00:46.8]} 27... Qxc2 {[%clk 0:01:14.2]} 28. Rxd6 {[%clk 0:00:47.9]} 28... Qxe4
{[%clk 0:01:13.4]} 29. Rd7 {[%clk 0:00:36.5]} 29... h5 {[%clk 0:00:59.1]} 30.
Rxb7 {[%clk 0:00:23.9]} 30... h4 {[%clk 0:00:56.7]} 31. Rb8 {[%clk 0:00:16.6]}
31... Rxb8 {[%clk 0:00:53.1]} 32. Qxb8+ {[%clk 0:00:18.5]} 32... Kh7 {[%clk
0:00:53.9]} 33. Bf2 {[%clk 0:00:18.2]} 33... Be5 {[%clk 0:00:48.3]} 34. Qd8
{[%clk 0:00:14.7]} 34... Bg3 {[%clk 0:00:33.7]} 35. Bg1 {[%clk 0:00:12]} 35...
Qf5 {[%clk 0:00:33.2]} 36. Qd2 {[%clk 0:00:12.3]} 36... e5 {[%clk 0:00:33.8]}
37. Qe2 {[%clk 0:00:13.6]} 37... e4 {[%clk 0:00:34.8]} 38. Be3 {[%clk 0:00:13]}
38... Qa5 {[%clk 0:00:30.5]} 39. Bg1 {[%clk 0:00:12.9]} 39... Qd5 {[%clk
0:00:28.7]} 40. Qf1 {[%clk 0:00:10.6]} 40... f5 {[%clk 0:00:25.7]} 41. Qa6
{[%clk 0:00:11.5]} 41... Kg7 {[%clk 0:00:21.4]} 42. Qa7+ {[%clk 0:00:12.2]}
42... Kf6 {[%clk 0:00:22.5]} 43. Bd4+ {[%clk 0:00:12.3]} 43... Ke6 {[%clk
0:00:22.8]} 44. Qa6+ {[%clk 0:00:11.3]} 44... Qd6 {[%clk 0:00:21.2]} 45. Qc4+
{[%clk 0:00:12]} 45... Kd7 {[%clk 0:00:21.3]} 46. Qf7+ {[%clk 0:00:12.3]} 46...
Kc6 {[%clk 0:00:22.2]} 47. Qc4+ {[%clk 0:00:13.3]} 47... Kd7 {[%clk 0:00:22.3]}
48. Qf7+ {[%clk 0:00:14.2]} 48... Kc8 {[%clk 0:00:22.7]} 49. Qe8+ {[%clk
0:00:11.4]} 49... Kc7 {[%clk 0:00:23.4]} 50. Qf7+ {[%clk 0:00:10.8]} 50... Qd7
{[%clk 0:00:24.7]} 51. Bb6+ {[%clk 0:00:09.7]} 51... Kc6 {[%clk 0:00:25.4]} 52.
Qxg6+ {[%clk 0:00:10.6]} 52... Qd6 {[%clk 0:00:25.1]} 53. Qxd6+ {[%clk
0:00:07.1]} 53... Kxd6 {[%clk 0:00:26.3]} 54. Kg1 {[%clk 0:00:07]} 54... Kd5
{[%clk 0:00:27.2]} 55. Kf1 {[%clk 0:00:07.8]} 55... Kc4 {[%clk 0:00:25.6]} 56.
Ke2 {[%clk 0:00:09.1]} 56... Kd5 {[%clk 0:00:24.8]} 57. Bd8 {[%clk 0:00:10.2]}
57... Kd4 {[%clk 0:00:24.5]} 58. Bf6+ {[%clk 0:00:10.7]} 58... Kd5 {[%clk
0:00:25.1]} 59. Bg5 {[%clk 0:00:11.9]} 59... Ke6 {[%clk 0:00:25.8]} 60. Bh6
{[%clk 0:00:11.3]} 60... Be5 {[%clk 0:00:24.1]} 61. Bg5 {[%clk 0:00:11.3]} 61...
Bf6 {[%clk 0:00:25.2]} 62. Bf4 {[%clk 0:00:12.8]} 62... Kf7 {[%clk 0:00:26.2]}
63. Bd6 {[%clk 0:00:13.8]} 63... Kg6 {[%clk 0:00:27.2]} 64. Bf4 {[%clk
0:00:14.5]} 64... Bg5 {[%clk 0:00:27.8]} 65. Bc7 {[%clk 0:00:15.5]} 65... Kf7
{[%clk 0:00:28.3]} 66. Bd6 {[%clk 0:00:15.8]} 66... Ke6 {[%clk 0:00:29.4]} 67.
Bc7 {[%clk 0:00:16.8]} 67... Be7 {[%clk 0:00:29.4]} 68. Bf4 {[%clk 0:00:17.7]}
68... Bd6 {[%clk 0:00:30.5]} 69. Bg5 {[%clk 0:00:18.9]} 69... Bg3 {[%clk
0:00:30.6]} 70. Bd8 {[%clk 0:00:19.6]} 70... Kd5 {[%clk 0:00:30.2]} 71. Bg5
{[%clk 0:00:20.7]} 71... Ke5 {[%clk 0:00:30.2]} 72. Bd8 {[%clk 0:00:21.6]} 72...
Kf4 {[%clk 0:00:31.2]} 73. Bc7+ {[%clk 0:00:22]} 73... Kg5 {[%clk 0:00:31.5]}
74. Bd8+ {[%clk 0:00:23.9]} 74... Kh5 {[%clk 0:00:32.5]} 75. Be7 {[%clk
0:00:25.4]} 75... Bf4 {[%clk 0:00:33.3]} 76. Bd8 {[%clk 0:00:26.3]} 76... Bg5
{[%clk 0:00:34.5]} 77. Bc7 {[%clk 0:00:27.9]} 77... Kg6 {[%clk 0:00:34]} 78. Bd6
{[%clk 0:00:28.6]} 78... Kf7 {[%clk 0:00:31]} 79. Bc7 {[%clk 0:00:29.7]} 79...
Ke6 {[%clk 0:00:32]} 80. Bb6 {[%clk 0:00:29.7]} 80... Kd6 {[%clk 0:00:28.3]} 81.
Ba7 {[%clk 0:00:29.8]} 81... f4 {[%clk 0:00:27.2]} 82. Bb8+ {[%clk 0:00:30.6]}
82... Kd5 {[%clk 0:00:28.3]} 83. Bc7 {[%clk 0:00:31.8]} 83... Ke6 {[%clk
0:00:29.1]} 84. Bb6 {[%clk 0:00:32.4]} 84... Kf5 {[%clk 0:00:30]} 85. Bc7 {[%clk
0:00:33.7]} 85... Bf6 {[%clk 0:00:30.9]} 86. Bd6 {[%clk 0:00:33.3]} 86... Be5
{[%clk 0:00:29.4]} 87. Be7 {[%clk 0:00:34.5]} 87... Bf6 {[%clk 0:00:30]} 88. Bd6
{[%clk 0:00:35.8]} 88... Bg5 {[%clk 0:00:29.5]} 89. Bc7 {[%clk 0:00:36.4]} 89...
Ke6 {[%clk 0:00:28.9]} 90. Bb8 {[%clk 0:00:37]} 90... Kf5 {[%clk 0:00:27.4]} 91.
Bc7 {[%clk 0:00:37.7]} 1/2-1/2

[Event "*** Titled Tuesday Blitz AM"]
[Site "Chess.com"]
[Date "2020.01.07"]
[Round "3"]
[White "Evgeny81"]
[Black "Sjakkerntobi"]
[Result "1/2-1/2"]
[WhiteElo "2543"]
[BlackElo "2264"]
[TimeControl "180+2"]
[EndTime "9:41:01 PST"]
[Termination "Game drawn by agreement"]

1. e4 {[%clk 0:03:01.9]} 1... c5 {[%clk 0:03:00.7]} 2. Nf3 {[%clk 0:03:02.5]}
2... e6 {[%clk 0:03:01]} 3. d4 {[%clk 0:03:02.6]} 3... cxd4 {[%clk 0:03:02.9]}
4. Nxd4 {[%clk 0:03:03.9]} 4... Nc6 {[%clk 0:03:04.6]} 5. Nc3 {[%clk 0:03:05.1]}
5... Qc7 {[%clk 0:03:05.7]} 6. Be2 {[%clk 0:03:05.3]} 6... Nf6 {[%clk
0:03:04.6]} 7. O-O {[%clk 0:03:06]} 7... Be7 {[%clk 0:03:05.8]} 8. Be3 {[%clk
0:03:04.1]} 8... O-O {[%clk 0:03:05.7]} 9. f4 {[%clk 0:03:05.1]} 9... d6 {[%clk
0:03:06.8]} 10. Qe1 {[%clk 0:03:03.4]} 10... Nxd4 {[%clk 0:03:07.5]} 11. Bxd4
{[%clk 0:03:04.2]} 11... e5 {[%clk 0:03:09.1]} 12. Be3 {[%clk 0:02:59.7]} 12...
exf4 {[%clk 0:03:09]} 13. Rxf4 {[%clk 0:02:59.6]} 13... Be6 {[%clk 0:03:09.9]}
14. Qf2 {[%clk 0:02:56]} 14... Rfd8 {[%clk 0:02:55.3]} 15. Rf1 {[%clk
0:02:55.6]} 15... d5 {[%clk 0:02:44.3]} 16. e5 {[%clk 0:02:39.4]} 16... Qxe5
{[%clk 0:02:42.2]} 17. Bd4 {[%clk 0:02:39.4]} 17... Qg5 {[%clk 0:02:38.6]} 18.
Bd3 {[%clk 0:02:34.2]} 18... Ne4 {[%clk 0:02:09.3]} 19. Qe3 {[%clk 0:02:20.6]}
19... Nxc3 {[%clk 0:01:59.6]} 20. bxc3 {[%clk 0:02:21.2]} 20... Bd6 {[%clk
0:01:56.7]} 21. R4f3 {[%clk 0:02:03.3]} 21... Qxe3+ {[%clk 0:01:56.1]} 22. Rxe3
{[%clk 0:02:04.9]} 22... Rac8 {[%clk 0:01:35.2]} 23. Bxa7 {[%clk 0:02:00.8]}
23... Ra8 {[%clk 0:01:34.6]} 24. Bb6 {[%clk 0:02:01.1]} 24... Rdc8 {[%clk
0:01:36.2]} 25. Bf5 {[%clk 0:01:50.8]} 25... Bxf5 {[%clk 0:01:19.5]} 26. Rxf5
{[%clk 0:01:52.3]} 26... Rxa2 {[%clk 0:00:35.4]} 27. Rxd5 {[%clk 0:01:52.3]}
27... Bf8 {[%clk 0:00:36.2]} 28. Re2 {[%clk 0:01:34.4]} 28... f6 {[%clk
0:00:17.9]} 29. Bd4 {[%clk 0:01:30.4]} 29... Rc7 {[%clk 0:00:16.4]} 30. Rb5
{[%clk 0:01:25.8]} 30... Kf7 {[%clk 0:00:17.4]} 31. h4 {[%clk 0:01:26.2]} 31...
g6 {[%clk 0:00:18.3]} 32. Rb6 {[%clk 0:01:19.7]} 32... Be7 {[%clk 0:00:19.1]}
33. h5 {[%clk 0:01:08.7]} 33... Ra6 {[%clk 0:00:19.1]} 34. Rb5 {[%clk
0:01:06.9]} 34... Rac6 {[%clk 0:00:17]} 35. Rf2 {[%clk 0:00:51.6]} 35... Bc5
{[%clk 0:00:15]} 36. Rxc5 {[%clk 0:00:42.4]} 36... Rxc5 {[%clk 0:00:16.3]} 37.
Rxf6+ {[%clk 0:00:43.7]} 37... Ke7 {[%clk 0:00:13.3]} 38. hxg6 {[%clk
0:00:42.8]} 38... hxg6 {[%clk 0:00:14.8]} 39. Rxg6 {[%clk 0:00:43.1]} 39... Rxc3
{[%clk 0:00:16]} 40. Rg7+ {[%clk 0:00:28]} 40... Ke6 {[%clk 0:00:16.8]} 41. Bxc3
{[%clk 0:00:27.2]} 41... Rxc3 {[%clk 0:00:16.8]} 42. Rxb7 {[%clk 0:00:28.8]}
42... Rxc2 {[%clk 0:00:18.2]} 43. Rb4 {[%clk 0:00:26.9]} 43... Kf6 {[%clk
0:00:19.1]} 44. Rf4+ {[%clk 0:00:27.4]} 44... Kg5 {[%clk 0:00:20.1]} 45. Rf3
{[%clk 0:00:27.4]} 45... Kg6 {[%clk 0:00:21.2]} 46. Kh2 {[%clk 0:00:28.5]} 46...
Rc6 {[%clk 0:00:22]} 47. Kh3 {[%clk 0:00:29.3]} 47... Kg7 {[%clk 0:00:23.6]} 48.
Rd3 {[%clk 0:00:29.5]} 48... Rc8 {[%clk 0:00:25.1]} 49. Kg4 {[%clk 0:00:30.2]}
49... Kg8 {[%clk 0:00:26.4]} 50. Kg5 {[%clk 0:00:30.4]} 50... Rb8 {[%clk
0:00:27.7]} 51. Rd5 {[%clk 0:00:30.8]} 51... Rc8 {[%clk 0:00:28.9]} 52. g4
{[%clk 0:00:31.5]} 52... Rb8 {[%clk 0:00:30]} 53. Rd6 {[%clk 0:00:26.2]} 53...
Rc8 {[%clk 0:00:30]} 54. Rg6+ {[%clk 0:00:27.2]} 54... Kh7 {[%clk 0:00:30.4]}
55. Kh5 {[%clk 0:00:25.6]} 55... Rc5+ {[%clk 0:00:30.6]} 56. g5 {[%clk
0:00:24.3]} 56... Rc1 {[%clk 0:00:31.3]} 57. Rh6+ {[%clk 0:00:25.5]} 57... Kg7
{[%clk 0:00:31.9]} 58. Rg6+ {[%clk 0:00:26.1]} 58... Kh7 {[%clk 0:00:32.7]} 59.
Ra6 {[%clk 0:00:27.7]} 59... Rh1+ {[%clk 0:00:32.8]} 60. Kg4 {[%clk 0:00:28.9]}
60... Rg1+ {[%clk 0:00:32.9]} 61. Kf5 {[%clk 0:00:30.2]} 61... Rf1+ {[%clk
0:00:34.5]} 62. Ke4 {[%clk 0:00:31]} 62... Re1+ {[%clk 0:00:32.9]} 63. Kf3
{[%clk 0:00:31.5]} 63... Rf1+ {[%clk 0:00:34]} 64. Kg3 {[%clk 0:00:30.9]} 64...
Rf8 {[%clk 0:00:35.3]} 65. Kg4 {[%clk 0:00:27.7]} 65... Rf1 {[%clk 0:00:34.9]}
66. Ra7+ {[%clk 0:00:28.5]} 66... Kg8 {[%clk 0:00:35.2]} 67. Kh5 {[%clk
0:00:26.3]} 67... Rf8 {[%clk 0:00:34.8]} 68. Kh6 {[%clk 0:00:25.9]} 68... Rc8
{[%clk 0:00:32.5]} 69. Rg7+ {[%clk 0:00:26.3]} 69... Kh8 {[%clk 0:00:33]} 70.
Rf7 {[%clk 0:00:27.5]} 70... Kg8 {[%clk 0:00:34.2]} 71. Rf6 {[%clk 0:00:28.3]}
71... Rd8 {[%clk 0:00:33.7]} 72. Rc6 {[%clk 0:00:28.4]} 72... Rb8 {[%clk
0:00:34.4]} 73. Kg6 {[%clk 0:00:26.3]} 73... Rd8 {[%clk 0:00:34.3]} 74. Kf6
{[%clk 0:00:27.1]} 74... Rf8+ {[%clk 0:00:34.8]} 75. Kg6 {[%clk 0:00:25.3]}
75... Ra8 {[%clk 0:00:36.4]} 76. Rb6 {[%clk 0:00:23.1]} 76... Rc8 {[%clk
0:00:37.1]} 77. Ra6 {[%clk 0:00:23.6]} 77... Rd8 {[%clk 0:00:37.8]} 78. Kf6
{[%clk 0:00:23]} 78... Rf8+ {[%clk 0:00:38.6]} 79. Ke5 {[%clk 0:00:23.1]} 79...
Re8+ {[%clk 0:00:39.4]} 80. Kf5 {[%clk 0:00:24.2]} 80... Rf8+ {[%clk 0:00:40.5]}
81. Kg6 {[%clk 0:00:25.4]} 81... Rc8 {[%clk 0:00:41.2]} 82. Ra7 {[%clk
0:00:26.5]} 82... Rc6+ {[%clk 0:00:41.8]} 83. Kh5 {[%clk 0:00:27.6]} 83... Rc8
{[%clk 0:00:43.7]} 84. Kh6 {[%clk 0:00:26.8]} 84... Rc6+ {[%clk 0:00:43.8]} 85.
g6 {[%clk 0:00:27.2]} 85... Rc8 {[%clk 0:00:44.2]} 86. Rg7+ {[%clk 0:00:28.6]}
86... Kh8 {[%clk 0:00:43.6]} 87. Rf7 {[%clk 0:00:29.8]} 87... Kg8 {[%clk
0:00:44]} 88. Rf6 {[%clk 0:00:27.9]} 88... Rc1 {[%clk 0:00:43.2]} 89. Rf5 {[%clk
0:00:26.9]} 89... Rh1+ {[%clk 0:00:43.7]} 90. Kg5 {[%clk 0:00:28.1]} 90... Rg1+
{[%clk 0:00:44.3]} 91. Kf6 {[%clk 0:00:29.4]} 91... Ra1 {[%clk 0:00:43.5]} 92.
Re5 {[%clk 0:00:29.2]} 92... Ra6+ {[%clk 0:00:43]} 93. Kf5 {[%clk 0:00:29.9]}
93... Ra8 {[%clk 0:00:44]} 94. Kg5 {[%clk 0:00:30.7]} 94... Rb8 {[%clk
0:00:44.8]} 1/2-1/2